bitfinex/quotes_ETHUSD_20250529
["timestamp","ask_amount","ask_price","bid_price","bid_amount"]
[1748487834580,4.017,2765.1,2765.0,3.61663652]
[1748487834905,4.017,2765.1,2764.9,3.61673869]
[1748487835213,4.017,2765.1,2765.0,3.61663652]
[1748487835517,4.017,2765.1,2764.4,8.0]
[1748487835807,0.8177,2765.3,2764.5,3.61723957]
[1748487835978,0.8177,2765.3,2764.7,0.0502]
[1748487836180,4.016,2765.4,2765.1,3.61638539]
[1748487836380,1.156,2765.5,2764.7,0.0502]
[1748487836381,1.156,2765.5,2765.2,3.61635609]
[1748487836581,1.156,2765.5,2765.4,3.6161134]
[1748487836782,1.156,2765.5,2764.7,0.0502]
[1748487836783,0.8004,2765.9,2765.6,3.61577217]
[1748487837072,0.8004,2765.9,2765.0,9.74194804]
[1748487837073,0.8004,2765.9,2765.8,3.61559042]
[1748487837276,4.8164,2766.2,2765.9,3.61536688]
[1748487837570,0.59724,2766.1,2765.9,3.61536688]
[1748487837794,0.59724,2766.1,2765.8,3.6155522]
[1748487838630,0.59724,2766.1,2765.9,3.61545229]
[1748487838778,0.8004,2766.2,2765.9,3.61534758]
[1748487839011,0.8004,2766.2,2765.8,3.61555353]
[1748487839191,0.8004,2766.2,2765.7,3.61569241]
[1748487839806,0.8004,2766.2,2765.7,3.61562781]
[1748487840168,0.8004,2766.2,2765.8,3.61558168]
[1748487840410,0.8091,2766.1,2765.1,8.0]
[1748487840612,4.42464567,2765.9,2765.1,8.0]
[1748487840915,4.014,2765.8,2765.1,8.0]
[1748487841096,4.014,2765.8,2765.5,3.61588822]
[1748487841305,4.014,2765.8,2765.6,3.6157327]
[1748487841636,4.014,2765.8,2765.7,3.61572115]
[1748487841937,4.014,2765.8,2765.1,8.0]
[1748487841938,1.156,2766.4,2765.8,3.61559042]
[1748487842088,0.8091,2766.3,2766.1,3.61510562]
[1748487842292,0.8091,2766.3,2766.0,3.61530274]
[1748487844169,0.8091,2766.3,2765.4,5.40817182]
[1748487844395,0.8091,2766.3,2765.8,3.61559014]
[1748487844612,0.8159,2767.0,2766.2,3.6150676]
[1748487844785,0.8159,2767.0,2766.1,0.0502]
[1748487844786,0.30121604,2766.9,2766.1,0.0502]
[1748487844992,0.30121604,2766.9,2766.2,3.6150676]
[1748487845401,0.30121604,2766.9,2766.8,3.61428364]
[1748487847028,1.156,2767.0,2766.9,3.61415302]
[1748487847525,1.156,2767.0,2766.3,8.0]
[1748487847689,1.156,2767.0,2766.8,3.61424035]
[1748487848023,1.156,2767.0,2766.4,0.0502]
[1748487848520,1.156,2767.0,2766.4,8.0]
[1748487848684,3.61457665,2766.6,2766.0,3.61523817]
[1748487848883,1.18785767,2766.5,2766.1,3.61509752]
[1748487849509,1.18785767,2766.5,2765.1,0.0502]
[1748487849510,0.8264,2766.1,2765.1,0.0502]
[1748487849725,0.8264,2766.1,2764.7,3.61696328]
[1748487849726,3.61558505,2765.9,2765.2,3.61629865]
[1748487850034,4.40327439,2765.6,2764.8,0.0502]
[1748487850337,7.62701907,2765.5,2764.9,3.61669246]
[1748487850544,7.62701907,2765.5,2764.5,0.0502]
[1748487850545,4.011,2765.5,2764.5,3.66741481]
[1748487850835,7.62701205,2765.5,2764.9,3.61674628]
[1748487851037,3.61620897,2765.4,2764.6,3.6171474]
[1748487851197,3.61620897,2765.4,2764.5,0.0502]
[1748487851198,0.84144121,2765.4,2764.5,0.0502]
[1748487851736,0.84144121,2765.4,2764.7,3.61693348]
[1748487851894,4.45755847,2765.4,2764.8,3.61678948]
[1748487852099,3.61626593,2765.3,2764.7,3.61697861]
[1748487852357,0.7874,2765.1,2764.2,0.0502]
[1748487852564,5.16,2765.0,2764.2,0.0502]
[1748487852717,5.16,2765.0,2764.6,3.61705447]
[1748487853641,5.16,2765.0,2764.7,3.61701073]
[1748487853810,5.16,2765.0,2764.7,3.61696126]
[1748487854015,5.16,2765.0,2764.5,3.61728072]
[1748487854310,0.7874,2765.1,2764.1,0.18844723]
[1748487854524,1.15,2764.9,2764.6,3.61708292]
[1748487854836,0.8228,2764.8,2764.1,3.61772764]
[1748487855138,0.8228,2764.8,2763.6,3.61846866]
[1748487855139,4.43978427,2764.8,2764.2,3.61767264]
[1748487855438,4.43978427,2764.8,2764.3,3.61744817]
[1748487855439,0.8228,2764.8,2764.3,3.61744817]
[1748487855646,2.14444333,2764.8,2764.3,3.61744817]
[1748487856144,2.14444333,2764.8,2764.4,3.61737595]
[1748487856441,2.14444333,2764.8,2764.3,3.61750324]
[1748487857029,5.7613511,2764.8,2764.2,3.61763185]
[1748487857224,0.69113511,2764.7,2763.7,8.24321431]
[1748487857437,0.69113511,2764.7,2764.2,3.61765592]
[1748487859002,0.69113511,2764.7,2763.7,3.81133563]
[1748487859003,0.8098,2764.6,2763.7,3.81133563]
[1748487859243,0.8016,2764.4,2763.3,0.0502]
[1748487859448,0.8016,2764.4,2763.1,0.04094694]
[1748487859641,0.8016,2764.4,2763.2,1.74166258]
[1748487859945,11.4209616,2765.6,2763.2,1.74166258]
[1748487859946,1.9309,2765.0,2764.8,3.61678163]
[1748487860144,1.9309,2765.0,2764.5,3.61717991]
[1748487860305,1.9309,2765.0,2764.6,3.61712949]
[1748487860639,1.9309,2765.0,2764.7,3.61694996]
[1748487861157,1.151,2765.0,2764.9,3.61676733]
[1748487861308,1.151,2765.2,2765.0,3.61653306]
[1748487861500,0.7799,2765.3,2765.0,3.61653306]
[1748487861731,1.9309,2765.3,2765.0,3.61653306]
[1748487861934,1.9309,2765.3,2765.1,3.61648969]
[1748487862117,1.9309,2765.3,2764.7,5.35869155]
[1748487862418,9.7165,2765.6,2765.3,3.61624416]
[1748487862645,9.7165,2765.6,2765.4,3.61610318]
[1748487862947,8.5655,2765.6,2765.5,3.61598264]
[1748487863309,8.5655,2765.6,2765.1,3.61646985]
[1748487863547,8.5655,2765.6,2765.3,3.61615624]
[1748487863712,8.5655,2765.6,2764.9,11.61676733]
[1748487863906,8.5655,2765.6,2764.9,0.5401668]
[1748487864110,8.5655,2765.6,2765.2,3.616354]
[1748487864350,8.5655,2765.6,2765.4,3.61610911]
[1748487864648,8.5655,2765.6,2765.3,3.61614883]
[1748487864811,8.5655,2765.6,2765.2,3.61633477]
[1748487865005,8.5655,2765.6,2764.9,0.5401668]
[1748487865208,8.5655,2765.6,2764.4,3.61738201]
[1748487865209,12.18136043,2765.6,2764.4,0.0502]
[1748487865410,3.6160645,2765.5,2764.4,0.0502]
[1748487865650,3.6160645,2765.5,2764.9,3.61675222]
[1748487865815,8.5655,2765.6,2764.4,0.0502]
[1748487866010,4.58766667,2765.5,2764.5,1.1667707]
[1748487866231,3.61619053,2765.4,2764.7,3.61690096]
[1748487866410,3.61619053,2765.4,2764.3,8.0]
[1748487866411,0.778,2765.4,2764.3,8.0]
[1748487866839,0.778,2765.4,2764.9,3.61670835]
[1748487867377,4.39427145,2765.3,2764.7,3.61690423]
[1748487867515,0.778,2765.3,2764.9,3.6167373]
[1748487867915,0.778,2765.3,2764.8,3.61689808]
[1748487868555,0.778,2765.3,2764.9,3.61668591]
[1748487868855,0.778,2765.3,2764.9,3.61676414]
[1748487869214,0.778,2765.3,2764.8,3.61687363]
[1748487870243,0.778,2765.3,2764.9,3.61676139]
[1748487870499,0.778,2765.3,2764.9,3.61673493]
[1748487870979,0.778,2765.3,2764.5,8.0]
[1748487871178,0.778,2765.3,2765.0,3.61657072]
[1748487871343,0.778,2765.3,2764.5,9.1617384]
[1748487871539,4.785,2765.3,2764.6,3.6171598]
[1748487871792,4.785,2765.3,2763.6,4.68243289]
[1748487871793,4.37386733,2764.9,2763.8,0.0502]
[1748487871972,4.37386733,2764.9,2764.3,3.61744783]
[1748487871973,5.157,2764.8,2764.3,3.61744783]
[1748487872145,5.157,2764.8,2763.8,3.66837397]
[1748487872344,5.157,2764.8,2764.4,3.61741111]
[1748487872654,0.7571,2764.9,2764.8,3.61689814]
[1748487872843,0.7571,2764.9,2764.2,3.61762503]
[1748487872844,5.9141,2764.9,2764.7,3.61699526]
[1748487873347,5.9141,2764.9,2764.6,3.61709542]
[1748487873652,1.9081,2764.9,2764.6,3.61710232]
[1748487873871,1.9081,2764.9,2764.3,0.36176557]
[1748487874056,5.52494833,2764.9,2764.4,3.61739653]
[1748487874258,5.52491038,2764.9,2764.2,3.61764188]
[1748487874441,5.52491038,2764.9,2764.3,3.61755236]
[1748487874642,1.9081,2764.9,2764.5,3.61729064]
[1748487874985,5.9131,2764.9,2764.6,3.61707599]
[1748487875346,5.9131,2764.9,2764.7,3.61698325]
[1748487875347,1.9081,2764.9,2764.7,3.61698325]
[1748487875562,1.9081,2764.9,2764.1,0.36179208]
[1748487876095,5.52494926,2764.9,2764.3,3.61748298]
[1748487876299,5.52494926,2764.9,2764.2,3.6176593]
[1748487876300,3.61692196,2764.8,2764.2,3.6176593]
[1748487876596,3.61707407,2764.7,2764.2,3.61767474]
[1748487876795,3.22276636,2764.9,2764.1,3.6177575]
[1748487876796,0.7644,2764.8,2764.1,3.6177575]
[1748487876966,3.6171011,2764.7,2764.1,3.6177575]
[1748487877298,4.38130552,2764.8,2764.2,3.6176544]
[1748487877299,0.7644,2764.8,2764.2,3.6176544]
[1748487877600,0.7644,2764.8,2763.4,7.62361025]
[1748487877601,0.7882,2764.5,2763.1,0.27963676]
[1748487877804,4.005,2764.4,2763.9,3.61802894]
[1748487877958,5.15,2764.3,2763.2,8.0]
[1748487878163,5.15,2764.3,2763.3,1.18986742]
[1748487878510,5.15,2764.3,2763.8,3.61817761]
[1748487878994,5.15,2764.3,2763.3,3.6188615]
[1748487878995,1.146,2764.3,2763.4,1.74282029]
[1748487879193,1.146,2764.3,2763.8,3.61813701]
[1748487879494,0.7882,2764.2,2764.0,3.61794058]
[1748487879678,0.7882,2764.2,2763.5,3.6185543]
[1748487879886,0.7882,2764.2,2763.9,3.61800589]
[1748487880215,0.7882,2764.2,2763.6,0.53613746]
[1748487880595,0.7882,2764.2,2763.8,3.61813326]
[1748487880892,0.7882,2764.2,2763.7,3.61828142]
[1748487881088,0.7882,2764.2,2763.6,4.15455462]
[1748487881286,0.7882,2764.2,2763.4,3.61866334]
[1748487881492,3.61786173,2764.1,2763.5,3.61858108]
[1748487881729,3.61783629,2764.1,2763.4,3.61869775]
[1748487881941,4.40592794,2764.2,2763.6,3.61838241]
[1748487882158,3.61783553,2764.1,2763.6,3.61838241]
[1748487882436,3.61783553,2764.1,2763.1,3.84852229]
[1748487882437,0.8174,2763.9,2763.1,0.04094694]
[1748487882600,0.8174,2763.3,2763.1,0.04094694]
[1748487882804,1.9634,2763.3,2763.1,0.04094694]
[1748487883071,4.43639247,2763.2,2763.1,0.04094694]
[1748487883436,4.98639247,2763.2,2763.1,0.04094694]
[1748487884082,4.98639247,2763.2,2761.7,4.0542]
[1748487884083,0.7698,2762.8,2762.1,3.62039874]
[1748487884320,0.7698,2762.8,2761.5,3.62117977]
[1748487884321,1.3198,2762.6,2761.4,0.2797355]
[1748487884437,1.3198,2762.6,2760.9,0.514]
[1748487884438,4.3906182,2761.9,2761.2,3.62161379]
[1748487884642,1.146,2761.8,2761.3,3.62143392]
[1748487884837,0.7698,2761.9,2761.2,0.03621293]
[1748487885037,3.61918807,2763.1,2761.9,3.62060476]
[1748487885038,3.61988353,2762.6,2761.9,3.62060476]
[1748487885255,0.7698,2762.4,2761.7,3.62084518]
[1748487885474,0.7698,2762.4,2761.1,1.74282029]
[1748487885475,1.146,2762.3,2761.2,1.74282029]
[1748487885654,1.146,2762.3,2761.1,8.0]
[1748487885655,4.39014951,2762.2,2761.1,8.0]
[1748487885855,4.17051274,2762.1,2761.4,3.62123167]
[1748487886087,0.7698,2762.0,2761.8,3.62073463]
[1748487886284,0.7698,2762.0,2761.0,1.74282029]
[1748487886285,0.7698,2762.0,2761.3,3.62137744]
[1748487886451,0.7698,2762.0,2761.0,9.74282029]
[1748487886784,0.7698,2762.0,2761.6,3.62100248]
[1748487887074,0.7698,2762.0,2760.8,1.83392029]
[1748487887275,0.7698,2762.0,2761.3,3.62144991]
[1748487887636,0.7698,2762.0,2761.0,3.62187613]
[1748487887834,4.39047036,2762.0,2761.2,3.62148263]
[1748487888093,0.7698,2762.0,2761.2,3.62148263]
[1748487888385,0.7698,2762.0,2761.3,0.03621485]
[1748487888680,0.7698,2762.0,2761.9,3.62069589]
[1748487888886,1.146,2762.3,2761.5,3.6211559]
[1748487888887,1.146,2762.3,2762.1,3.62034177]
[1748487889044,1.146,2762.3,2761.9,3.62063104]
[1748487889247,1.146,2762.3,2761.3,0.0911]
[1748487889248,1.146,2762.3,2762.1,3.62032906]
[1748487889451,1.146,2762.3,2762.1,3.62042649]
[1748487889655,1.146,2762.3,2762.2,3.62030265]
[1748487890979,0.8246,2762.7,2762.1,3.62043365]
[1748487891157,1.9706,2762.7,2762.6,3.61977846]
[1748487891870,1.146,2762.7,2762.6,3.61977846]
[1748487892060,0.8146,2763.0,2762.5,3.61990841]
[1748487892061,0.8146,2763.0,2762.9,3.61938542]
[1748487892285,0.30121604,2763.0,2762.9,3.61938542]
[1748487894356,0.30121604,2763.0,2762.9,5.45330571]
[1748487894592,0.30121604,2763.0,2762.9,6.36058779]
[1748487895100,0.30121604,2763.0,2762.9,1.74282029]
[1748487895557,0.30121604,2763.0,2762.9,13.36220571]
[1748487896669,0.30121604,2763.0,2762.9,11.61938542]
[1748487901908,0.7974,2763.6,2763.0,3.61925443]
[1748487902803,7.808,2763.8,2763.7,3.61833773]
[1748487902987,7.808,2763.8,2763.5,3.61849556]
[1748487903200,7.808,2763.8,2763.1,3.61912344]
[1748487903406,7.808,2763.8,2763.4,3.61868791]
[1748487903575,0.8954,2763.7,2763.4,3.61868791]
[1748487904273,0.8954,2763.7,2763.0,8.0]
[1748487904577,0.8954,2763.7,2763.4,3.61865251]
[1748487905112,0.8954,2763.7,2763.5,3.61848001]
[1748487905272,0.8954,2763.7,2763.4,3.6186756]
[1748487905475,0.87034,2763.6,2763.3,3.61880143]
[1748487905714,0.7705,2763.5,2763.4,3.61871253]
[1748487906812,0.7705,2763.5,2763.3,3.61880314]
[1748487907018,0.7705,2763.5,2762.6,3.999]
[1748487907019,0.8264,2763.0,2761.8,4.13475981]
[1748487907187,1.141,2762.9,2762.0,3.6205648]
[1748487907381,1.141,2762.9,2762.6,3.6197674]
[1748487907733,1.141,2762.9,2762.1,3.62043372]
[1748487907734,1.141,2762.9,2762.4,8.0]
[1748487907895,1.141,2762.9,2762.8,3.61951643]
[1748487908084,1.141,2762.9,2762.3,3.62017159]
[1748487908285,1.141,2762.9,2762.8,3.61951643]
[1748487908487,0.8264,2763.0,2762.9,3.61938542]
[1748487908924,0.8264,2763.0,2762.7,3.61957752]
[1748487909095,1.02314,2763.0,2762.8,3.61948662]
[1748487909427,1.02314,2763.0,2762.7,3.61959754]
[1748487910189,1.02314,2763.0,2762.6,3.61973102]
[1748487910421,1.02314,2763.0,2762.7,3.61961975]
[1748487910765,1.02314,2763.0,2762.5,3.61980468]
[1748487910947,0.7705,2762.5,2761.6,3.62108922]
[1748487911151,3.998,2762.4,2762.1,3.6204262]
[1748487911316,1.141,2762.3,2762.1,3.6204262]
[1748487911516,1.141,2762.3,2762.2,3.62030265]
[1748487914163,1.141,2762.3,2762.1,3.62037899]
[1748487914499,1.141,2762.3,2762.2,3.62030265]
[1748487915034,1.141,2762.3,2761.4,0.64990974]
[1748487915243,0.7945,2762.2,2761.7,3.6208679]
[1748487915637,0.7945,2762.2,2761.7,3.62083483]
[1748487915845,4.41488346,2762.2,2761.6,3.62105688]
[1748487916083,0.55,2762.1,2761.5,3.62114964]
[1748487916303,0.55,2762.1,2761.3,3.62143237]
[1748487916304,0.801,2762.0,2761.3,3.62143237]
[1748487916516,0.801,2761.9,2759.9,3.62329721]
[1748487916801,0.801,2761.9,2759.0,3.62445247]
[1748487916802,0.801,2761.4,2760.6,8.0]
[1748487916943,5.138,2761.3,2761.0,3.62177594]
[1748487917293,5.138,2761.3,2760.8,3.62201641]
[1748487917442,0.801,2761.2,2760.8,3.62213531]
[1748487917810,0.801,2761.2,2760.2,0.22632893]
[1748487917811,1.75704404,2761.2,2760.2,0.22632893]
[1748487918002,3.62371358,2759.6,2759.5,0.514]
[1748487918147,5.939,2759.6,2757.5,5.37202004]
[1748487918348,5.939,2759.6,2756.0,2.90491808]
[1748487918349,0.36237136,2759.5,2758.1,3.62568434]
[1748487918547,0.36237136,2759.5,2758.0,1.74282029]
[1748487918548,4.76510444,2759.4,2758.7,3.62488197]
[1748487918785,0.801,2759.1,2757.6,3.997]
[1748487919001,0.801,2759.1,2757.9,1.74282029]
[1748487919211,5.138,2759.2,2758.8,3.62463959]
[1748487919352,1.141,2759.1,2758.4,1.74282029]
[1748487919707,1.141,2759.1,2758.8,3.62465983]
[1748487920012,1.141,2759.1,2757.6,1.75024894]
[1748487920013,0.7737,2759.0,2757.6,1.75024894]
[1748487920165,0.7737,2759.0,2758.1,3.6255879]
[1748487920166,3.624633,2758.9,2758.1,3.6255879]
[1748487920347,3.62514793,2758.6,2756.8,7.28030183]
[1748487920548,3.997,2758.5,2757.0,3.62713093]
[1748487920813,1.142,2758.4,2758.1,3.62566065]
[1748487921095,1.142,2758.4,2757.1,0.36271309]
[1748487921251,5.14,2758.3,2756.8,0.27930607]
[1748487921453,0.7737,2758.4,2757.7,3.62610958]
[1748487921454,1.142,2758.2,2757.7,3.62610958]
[1748487921684,0.7737,2758.4,2757.6,1.75024894]
[1748487921863,0.36473009,2760.3,2757.6,1.75024894]
[1748487921864,1.142,2758.7,2758.6,3.62502718]
[1748487922068,1.142,2758.7,2758.5,3.62512387]
[1748487922265,1.142,2758.7,2757.9,8.0]
[1748487922495,1.142,2758.7,2757.9,12.78846353]
[1748487922651,1.142,2758.7,2758.6,3.62502718]
[1748487922975,0.8036,2758.9,2758.6,3.62502718]
[1748487923149,0.8036,2758.9,2758.8,3.62476439]
[1748487923350,1.142,2759.1,2759.0,3.62450163]
[1748487923595,0.8041,2759.3,2758.8,0.72497916]
[1748487923778,0.8041,2759.3,2759.2,3.6242389]
[1748487924904,0.8041,2759.3,2758.8,0.72497916]
[1748487925055,0.8041,2759.3,2759.0,3.62442752]
[1748487925253,0.8041,2759.3,2759.0,3.62445605]
[1748487926048,0.8041,2759.3,2759.2,3.6242389]
[1748487926252,1.9461,2759.3,2759.2,3.6242389]
[1748487926698,2.24731604,2759.3,2758.6,8.0]
[1748487926897,2.24731604,2759.3,2759.0,3.62439559]
[1748487926898,0.30121604,2759.2,2759.0,3.62439559]
[1748487927103,0.30121604,2759.2,2758.7,1.16250722]
[1748487927301,0.30121604,2759.2,2758.8,3.62468174]
[1748487927508,0.30121604,2759.2,2758.4,8.0]
[1748487927819,0.30121604,2759.2,2758.1,3.62560224]
[1748487927995,0.30121604,2759.2,2757.6,11.75517964]
[1748487927996,3.92549757,2759.2,2758.5,3.62508029]
[1748487928174,1.142,2759.1,2757.9,1.75024894]
[1748487928382,0.30121604,2759.0,2758.6,3.62497694]
[1748487928690,0.30121604,2759.0,2758.1,11.62568434]
[1748487928862,0.30121604,2759.0,2758.6,3.62501122]
[1748487929206,0.30121604,2759.0,2758.5,3.62507243]
[1748487929207,1.142,2758.9,2758.5,3.62507243]
[1748487929500,1.142,2758.9,2757.8,1.75024894]
[1748487929501,0.30121604,2758.8,2757.8,1.75024894]
[1748487929710,0.30121604,2758.8,2758.7,3.62489578]
[1748487930409,0.30121604,2758.8,2758.6,3.62497654]
[1748487930913,0.30121604,2758.8,2758.5,3.62510322]
[1748487931113,0.8233,2758.7,2757.8,1.62281413]
[1748487931270,0.8233,2758.7,2758.2,3.62547291]
[1748487931610,0.8233,2758.7,2757.6,3.62634174]
[1748487931801,0.8233,2758.7,2758.6,3.62502718]
[1748487931986,1.9663,2758.7,2758.6,3.62502718]
[1748487932181,1.9663,2758.7,2758.0,3.6258158]
[1748487932388,0.8233,2758.7,2758.6,3.62502718]
[1748487932586,0.8233,2758.7,2758.5,3.62511246]
[1748487932587,1.9663,2758.7,2758.5,3.62511246]
[1748487933235,1.9663,2758.7,2758.4,3.62528652]
[1748487933371,1.9663,2758.7,2758.3,3.62538832]
[1748487933568,2.56293,2758.7,2758.1,3.62559241]
[1748487933881,2.56293,2758.7,2757.9,3.62586346]
[1748487933882,6.18783856,2758.7,2757.9,3.62586346]
[1748487934080,3.62513232,2758.6,2757.9,3.62586346]
[1748487934281,3.62519227,2758.5,2757.9,3.62586346]
[1748487934498,0.98130308,2758.5,2757.8,3.62607637]
[1748487934687,0.98130308,2758.5,2757.4,3.62650559]
[1748487934884,0.7889,2758.2,2756.9,0.63477561]
[1748487935086,3.62604438,2757.9,2757.3,3.62672091]
[1748487935287,1.143,2757.8,2757.4,3.62653033]
[1748487935503,0.7889,2758.0,2756.9,1.75024894]
[1748487935682,0.7889,2757.6,2756.0,1.89672456]
[1748487935874,1.33319,2757.5,2756.4,5.37816941]
[1748487936076,1.33319,2757.5,2757.1,3.6269617]
[1748487936301,1.33319,2757.5,2757.1,3.62696294]
[1748487936486,0.19319,2757.5,2757.3,3.62669238]
[1748487936686,0.7889,2757.6,2756.0,3.77485278]
[1748487936687,0.7889,2757.6,2757.5,3.62647325]
[1748487936886,3.62551155,2758.3,2757.7,3.62621024]
[1748487936887,1.14,2757.8,2757.7,3.62621024]
[1748487937527,1.14,2757.8,2756.9,3.6272625]
[1748487937831,1.14,2757.7,2757.3,3.6267363]
[1748487938127,0.8063,2758.3,2757.3,3.6267363]
[1748487938340,8.962,2758.6,2758.2,3.62555289]
[1748487938490,8.962,2758.6,2757.7,1.75024894]
[1748487938491,8.962,2758.6,2758.4,3.62517835]
[1748487938828,8.962,2758.6,2757.8,3.62607875]
[1748487939032,12.963,2758.6,2757.8,4.96371152]
[1748487939235,12.963,2758.6,2757.0,3.62713093]
[1748487939388,0.8063,2758.5,2757.2,8.0]
[1748487939607,0.55,2757.9,2756.4,3.62792047]
[1748487939909,0.8063,2758.0,2757.0,8.0]
[1748487940246,1.14,2758.0,2757.4,11.62660477]
[1748487940404,4.8073,2758.2,2758.1,3.62568434]
[1748487940590,5.9473,2758.2,2758.1,3.62568434]
[1748487940790,7.822,2758.6,2757.4,8.0]
[1748487940791,8.6283,2758.6,2758.5,3.6251586]
[1748487941007,13.7693,2758.6,2757.7,3.62621024]
[1748487941229,0.86283,2758.5,2758.0,3.62580205]
[1748487941390,0.86283,2758.5,2757.6,3.62633907]
[1748487941391,3.62566527,2758.2,2757.6,3.62633907]
[1748487941586,0.86283,2758.5,2757.1,8.0]
[1748487941792,0.788,2758.3,2757.6,3.62622992]
[1748487942020,0.788,2758.3,2757.7,3.62621024]
[1748487942233,0.788,2758.3,2757.6,3.62629583]
[1748487942529,5.141,2758.2,2757.8,3.62604904]
[1748487942706,5.141,2758.2,2757.1,11.62691082]
[1748487943029,0.5929,2758.1,2757.6,3.62625788]
[1748487943232,0.788,2758.0,2756.3,3.62792567]
[1748487943436,0.55,2757.9,2756.0,5.71408809]
[1748487943659,3.62667702,2757.4,2756.7,3.62740044]
[1748487943793,0.788,2757.2,2756.5,3.62778886]
[1748487946118,1.14,2757.6,2757.5,3.62647325]
[1748487946316,1.14,2757.6,2757.5,4.35178074]
[1748487946552,0.788,2758.0,2757.5,4.35178074]
[1748487946553,1.14,2758.0,2757.5,0.72530749]
[1748487946857,1.14,2758.0,2757.9,3.62594727]
[1748487948144,1.14,2758.0,2757.4,3.6265568]
[1748487948145,0.8183,2757.9,2756.1,3.62828391]
[1748487948328,1.14,2758.0,2756.0,2.08569842]
[1748487948329,0.8183,2757.2,2756.0,2.08569842]
[1748487948653,1.14,2757.1,2756.1,0.57141729]
[1748487948856,1.14,2757.1,2757.0,3.62713093]
[1748487949166,1.14,2757.5,2756.5,1.75024894]
[1748487949349,1.14,2757.5,2756.9,3.62725605]
[1748487949672,1.14,2757.5,2756.5,2.28807685]
[1748487949673,1.14,2757.4,2756.6,8.0]
[1748487949819,1.14,2757.4,2756.7,3.62745445]
[1748487950017,4.76662321,2757.4,2756.6,3.62762757]
[1748487950372,1.14,2757.4,2756.9,3.62717996]
[1748487950528,1.14,2757.3,2756.6,0.59157044]
[1748487950718,1.14,2757.3,2756.6,3.62758781]
[1748487951053,4.40417546,2757.2,2756.6,3.62758781]
[1748487951357,0.7773,2757.2,2756.6,3.62758781]
[1748487951850,4.40417177,2757.2,2756.6,3.62758781]
[1748487952051,3.62700762,2757.1,2756.5,3.62773316]
[1748487952218,0.7697,2756.9,2756.0,0.14647562]
[1748487952417,0.7697,2756.9,2756.0,3.77482381]
[1748487952418,3.62764158,2756.7,2756.0,3.77482381]
[1748487952632,3.62764158,2756.7,2756.1,3.62830985]
[1748487952816,0.7697,2756.9,2756.2,3.62816678]
[1748487953021,4.7674524,2756.8,2756.2,3.62816678]
[1748487953574,4.76748726,2756.8,2756.2,3.6281309]
[1748487954016,1.14,2756.8,2756.3,3.62797505]
[1748487954218,5.3211338,2756.8,2756.2,3.62815746]
[1748487954447,1.69370159,2756.8,2756.4,3.62786622]
[1748487954628,1.69370159,2756.8,2756.0,0.14647562]
[1748487954629,1.141,2756.8,2756.0,0.14647562]
[1748487954834,1.141,2756.8,2756.4,3.6278391]
[1748487955047,1.141,2756.7,2756.4,3.6278391]
[1748487955218,1.141,2756.7,2756.5,3.62778036]
[1748487955432,1.141,2756.7,2756.4,3.62784886]
[1748487955835,1.141,2756.7,2756.5,3.62768186]
[1748487956235,1.141,2756.7,2756.4,3.62784864]
[1748487956767,1.141,2756.7,2756.2,3.62814405]
[1748487956768,1.141,2756.7,2756.2,3.62810785]
[1748487957078,3.62788459,2756.5,2756.0,0.14647562]
[1748487957421,3.62788459,2756.5,2756.0,3.77491041]
[1748487957772,1.141,2756.4,2756.1,3.62823069]
[1748487957967,1.141,2756.4,2756.0,3.77490726]
[1748487958263,1.141,2756.4,2756.0,3.77483698]
[1748487958418,1.141,2756.4,2756.0,3.77487131]
[1748487958621,1.141,2756.4,2756.0,3.77487389]
[1748487958890,1.141,2756.4,2756.0,0.14647562]
[1748487959182,3.62831537,2756.1,2756.0,0.14647562]
[1748487959473,0.776,2756.3,2756.0,0.14647562]
[1748487959622,5.143,2756.2,2756.0,0.14647562]
[1748487959824,1.141,2756.2,2756.0,0.14647562]
[1748487960623,0.776,2756.3,2756.0,0.14647562]
[1748487960828,1.917,2756.3,2756.0,0.14647562]
[1748487961027,2.5089,2756.3,2756.0,0.14647562]
[1748487961228,1.917,2756.3,2755.9,3.62850816]
[1748487961464,1.917,2756.3,2756.0,3.62840339]
[1748487961693,1.917,2756.3,2755.9,3.62850816]
[1748487961694,1.141,2756.3,2756.2,3.62818373]
[1748487962879,3.62689714,2757.2,2756.2,3.62818373]
[1748487962880,1.141,2757.2,2756.4,8.0]
[1748487963182,1.141,2757.2,2757.1,11.62699938]
[1748487963183,0.30136501,2757.2,2757.1,11.62699938]
[1748487963391,0.30136501,2757.2,2757.1,13.15241204]
[1748487963981,0.30136501,2757.2,2757.1,13.70241204]
[1748487964572,0.30136501,2757.2,2757.1,13.7291354]
[1748487964868,1.141,2758.3,2758.2,3.62555289]
[1748487965169,1.141,2759.3,2758.7,3.62489374]
[1748487965375,0.19106,2759.3,2758.2,3.6254649]
[1748487965553,0.19106,2759.3,2758.2,3.62545429]
[1748487965867,3.62356025,2759.8,2758.4,1.75024894]
[1748487966042,1.9267,2759.9,2757.8,1.064]
[1748487966244,0.7989,2759.6,2758.3,8.0]
[1748487966567,0.7989,2759.6,2758.1,8.0]
[1748487966765,3.6238484,2759.5,2758.8,3.62474183]
[1748487966976,0.7989,2759.6,2758.3,3.62536133]
[1748487967177,0.7989,2759.6,2758.1,8.0]
[1748487967178,0.7989,2759.6,2758.0,4.008]
[1748487967468,3.6242389,2759.2,2757.8,8.0]
[1748487967654,3.6242389,2759.2,2758.0,3.6258158]
[1748487967655,4.007,2759.2,2758.0,3.6258158]
[1748487967872,3.62421809,2759.3,2757.7,4.007]
[1748487967873,1.142,2759.1,2758.6,3.62491108]
[1748487968186,0.7868,2759.4,2758.0,8.0]
[1748487968390,4.76541544,2759.1,2758.4,3.62527595]
[1748487968695,3.62497856,2758.7,2757.4,3.62660477]
[1748487968990,3.62497856,2758.7,2757.3,13.75824894]
[1748487968991,0.7698,2758.8,2758.0,3.62573348]
[1748487969170,3.62489578,2758.7,2758.0,3.62570613]
[1748487969370,4.39460039,2758.8,2758.1,3.62568097]
[1748487969867,3.62500784,2758.7,2757.6,8.0]